{"text_format":"1","workbook":"xlsx","n_sheets":2,"sheets":["Quiz","Result"],"not_rendered":{"charts":0,"images":0,"macros":1,"external_links":0,"defined_names":0,"comments":0,"pivot_tables":0},"unopened":[],"bounds":{"document_bytes":16777216,"sheet_cells":100000,"rows_first":2000,"rows_last":500,"rows_between":2000,"halvings":0,"cell_chars":16384,"cell_head_chars":4096},"cells_cut":0,"cells_raw":0,"read":"whole","date_system":"1900"}

{"sheet":"Quiz","index":0,"n_rows":101,"n_cols":12,"rows_kept":101,"cut":false,"hidden":false,"merged":[[78,2,78,4],[24,2,24,4],[84,2,84,4],[90,2,90,4],[96,2,96,4],[48,2,48,4],[54,2,54,4],[60,2,60,4],[66,2,66,4],[72,2,72,4],[0,9,1,11],[18,2,18,4],[42,2,42,4],[36,2,36,4],[30,2,30,4],[6,2,6,4],[12,2,12,4],[0,1,0,4],[2,1,2,4],[4,1,4,4]]}
[null,"A Learning Style Questionnaire",null,null,null,null,null,null,null,"Calculate answer from Quiz Sheet"]
[]
[null,"How Do I Learn Best?"]
[]
[null,"Choose the answer which best explains your preference.  Please do not select more than one if a single answer does not match your perception select the closest match.  Do not leave any questions blank."]
[]
[null,1,"If you were at a party what would you remember the day after?",null,null,null,null,null,1]
[null,null,null,null,"what you said and did at the party.",null,null,null,null,0,"K",{"$f":"IF(J8=1,K8,(IF(J8=2,K9,(IF(J8=3,K10,(IF(J8=4,K11,0)))))))","v":0}]
[null,null,null,null,"things people said to you.",null,null,null,null,null,"A"]
[null,null,null,null,"the names of all the people you met.",null,null,null,null,null,"R"]
[null,null,null,null,"the faces of all the people you met.",null,null,null,null,null,"V"]
[]
[null,2,"Someone is looking for help with directions, do you:-",null,null,null,null,null,2]
[null,null,null,null,"give them a map or draw a map for them.",null,null,null,null,0,"V",{"$f":"IF(J14=1,K14,(IF(J14=2,K15,(IF(J14=3,K16,(IF(J14=4,K17,0)))))))","v":0}]
[null,null,null,null,"tell them the directions.",null,null,null,null,null,"A"]
[null,null,null,null,"write the directions down for them.",null,null,null,null,null,"R"]
[null,null,null,null,"go with them.",null,null,null,null,null,"K"]
[]
[null,3,"How do you like to spend your free time?",null,null,null,null,null,3]
[null,null,null,null,"out and about playing sport or doing things.",null,null,null,null,0,"K",{"$f":"IF(J20=1,K20,(IF(J20=2,K21,(IF(J20=3,K22,(IF(J20=4,K23,0)))))))","v":0}]
[null,null,null,null,"doing arts or crafts.",null,null,null,null,null,"V"]
[null,null,null,null,"listening to music.",null,null,null,null,null,"A"]
[null,null,null,null,"reading a book",null,null,null,null,null,"R"]
[]
[null,4,"You are going to cook a special treat for your family and friends. Would you:",null,null,null,null,null,4]
[null,null,null,null,"cook something you know without the need for instructions.",null,null,null,null,0,"K",{"$f":"IF(J26=1,K26,(IF(J26=2,K27,(IF(J26=3,K28,(IF(J26=4,K29,0)))))))","v":0}]
[null,null,null,null,"ask friends for suggestions.",null,null,null,null,null,"A"]
[null,null,null,null,"look through the cookbook for ideas from the pictures.",null,null,null,null,null,"V"]
[null,null,null,null,"use a cookbook where you know there is a good recipe.",null,null,null,null,null,"R"]
[]
[null,5,"When you stand in the queue at the movies would you prefer to:-",null,null,null,null,null,5]
[null,null,null,null,"talk to the people around you. ",null,null,null,null,0,"A",{"$f":"IF(J32=1,K32,(IF(J32=2,K33,(IF(J32=3,K34,(IF(J32=4,K35,0)))))))","v":0}]
[null,null,null,null,"look at the pictures on the posters around you.",null,null,null,null,null,"V"]
[null,null,null,null,"tap your foot and move around a bit.",null,null,null,null,null,"K"]
[null,null,null,null,"pick up and read a brochure of upcoming movies.",null,null,null,null,null,"R"]
[]
[null,6,"You are about to purchase a new camera.  Other than price, what would most influence your decision?",null,null,null,null,null,6]
[null,null,null,null,"trying it or testing it.",null,null,null,null,0,"K",{"$f":"IF(J38=1,K38,(IF(J38=2,K39,(IF(J38=3,K40,(IF(J38=4,K41,0)))))))","v":0}]
[null,null,null,null,"reading a detailed review about its features.",null,null,null,null,null,"R"]
[null,null,null,null,"how it looks and is it a modern design.",null,null,null,null,null,"V"]
[null,null,null,null,"the salesperson telling me about its features.",null,null,null,null,null,"A"]
[]
[null,7,"What would your favourite type of book be?",null,null,null,null,null,7]
[null,null,null,null,"a quiz book or one where you have to solve problems.",null,null,null,null,0,"K",{"$f":"IF(J44=1,K44,(IF(J44=2,K45,(IF(J44=3,K46,(IF(J44=4,K47,0)))))))","v":0}]
[null,null,null,null,"a shorter book with lots of dialogue in it.",null,null,null,null,null,"A"]
[null,null,null,null,"a travel or animal book with lots of photos.",null,null,null,null,null,"V"]
[null,null,null,null,"a novel.",null,null,null,null,null,"R"]
[]
[null,8,"You have a medical problem. Would you prefer that the doctor:",null,null,null,null,null,8]
[null,null,null,null,"gave you a something to read to explain what was wrong.",null,null,null,null,0,"R",{"$f":"IF(J50=1,K50,(IF(J50=2,K51,(IF(J50=3,K52,(IF(J50=4,K53,0)))))))","v":0}]
[null,null,null,null,"used a plastic model to show what was wrong.",null,null,null,null,null,"K"]
[null,null,null,null,"described what was wrong.",null,null,null,null,null,"A"]
[null,null,null,null,"showed you a diagram of what was wrong.",null,null,null,null,null,"V"]
[]
[null,9,"In class, which do you do most?",null,null,null,null,null,9]
[null,null,null,null,"take extensive notes.",null,null,null,null,0,"R",{"$f":"IF(J56=1,K56,(IF(J56=2,K57,(IF(J56=3,K58,(IF(J56=4,K59,0)))))))","v":0}]
[null,null,null,null,"listen carefully to the teacher/lecturer.",null,null,null,null,null,"A"]
[null,null,null,null,"sit back so you can doodle on the page or fidget.",null,null,null,null,null,"K"]
[null,null,null,null,"follow along in the textbook.",null,null,null,null,null,"V"]
[]
[null,10,"Do you prefer a teacher/lecturer who uses:-",null,null,null,null,null,10]
[null,null,null,null,"practical sessions,  models or  demonstrations.",null,null,null,null,0,"K",{"$f":"IF(J62=1,K62,(IF(J62=2,K63,(IF(J62=3,K64,(IF(J62=4,K65,0)))))))","v":0}]
[null,null,null,null,"group discussion, talks, question and answer or guest speakers.",null,null,null,null,null,"V"]
[null,null,null,null,"handouts, books, or readings.",null,null,null,null,null,"R"]
[null,null,null,null,"charts, diagrams or graphs.",null,null,null,null,null,"A"]
[]
[null,11,"Which type of class would you rather attend?",null,null,null,null,null,11]
[null,null,null,null,"art classes",null,null,null,null,0,"V",{"$f":"IF(J68=1,K68,(IF(J68=2,K69,(IF(J68=3,K70,(IF(J68=4,K71,0)))))))","v":0}]
[null,null,null,null,"language classes",null,null,null,null,null,"R"]
[null,null,null,null,"music classes",null,null,null,null,null,"A"]
[null,null,null,null,"an exercise class",null,null,null,null,null,"K"]
[]
[null,12,"You are using a book, CD or website to learn how to take photos with your new digital camera. Would you like to have:",null,null,null,null,null,12]
[null,null,null,null,"a chance to ask questions and talk about the camera and its features.",null,null,null,null,0,"A",{"$f":"IF(J74=1,K74,(IF(J74=2,K75,(IF(J74=3,K76,(IF(J74=4,K77,0)))))))","v":0}]
[null,null,null,null,"clear written instructions with lists and bullet points about what to do.",null,null,null,null,null,"R"]
[null,null,null,null,"diagrams showing the camera and what each part does.",null,null,null,null,null,"V"]
[null,null,null,null,"many examples of good and poor photos and how to improve them.",null,null,null,null,null,"K"]
[]
[null,13,"Which type of website to you enjoy most?  A site that has:-",null,null,null,null,null,13]
[null,null,null,null,"things you can click on or try.",null,null,null,null,0,"K",{"$f":"IF(J80=1,K80,(IF(J80=2,K81,(IF(J80=3,K82,(IF(J80=4,K83,0)))))))","v":0}]
[null,null,null,null,"interesting design and visual features.",null,null,null,null,null,"A"]
[null,null,null,null,"interesting written descriptions, lists and explanations.",null,null,null,null,null,"R"]
[null,null,null,null,"audio channels where I can hear music, radio programs or interviews.",null,null,null,null,null,"V"]
[]
[null,14,"You have just completed an examination.  Would you like your feedback to be given:-",null,null,null,null,null,14]
[null,null,null,null,"using examples from what you have done.",null,null,null,null,0,"K",{"$f":"IF(J86=1,K86,(IF(J86=2,K87,(IF(J86=3,K88,(IF(J86=4,K89,0)))))))","v":0}]
[null,null,null,null,"using a written description of your results.",null,null,null,null,null,"R"]
[null,null,null,null,"from somebody who talks it through with you.",null,null,null,null,null,"A"]
[null,null,null,null,"using graphs showing what you had achieved.",null,null,null,null,null,"V"]
[]
[null,15,"While out to dinner in a restaurant, do you?",null,null,null,null,null,15]
[null,null,null,null,"choose something that you have had there before.",null,null,null,null,0,"K",{"$f":"IF(J92=1,K92,(IF(J92=2,K93,(IF(J92=3,K94,(IF(J92=4,K95,0)))))))","v":0}]
[null,null,null,null,"listen to the waiter or ask friends to recommend choices.",null,null,null,null,null,"A"]
[null,null,null,null,"choose from the descriptions in the menu.",null,null,null,null,null,"R"]
[null,null,null,null,"look at what others are eating or look at pictures of each dish.",null,null,null,null,null,"V"]
[]
[null,16,"You have to make an important speech at a conference or special occasion. Would you:",null,null,null,null,null,16]
[null,null,null,null,"make diagrams or get graphs to help explain things.",null,null,null,null,0,"V",{"$f":"IF(J98=1,K98,(IF(J98=2,K99,(IF(J98=3,K100,(IF(J98=4,K101,0)))))))","v":0}]
[null,null,null,null,"write a few key words and practice saying your speech over and over.",null,null,null,null,null,"A"]
[null,null,null,null,"write out your speech and learn from reading it over several times.",null,null,null,null,null,"R"]
[null,null,null,null,"gather many examples and stories to make the talk real and practical.",null,null,null,null,null,"K"]

{"sheet":"Result","index":1,"n_rows":25,"n_cols":12,"rows_kept":25,"cut":false,"hidden":true,"merged":[[23,2,23,3],[24,2,24,3],[8,2,8,4],[6,2,6,5],[10,2,10,5],[13,2,13,5],[21,2,21,5],[12,2,12,5],[15,2,15,4],[16,2,16,4],[17,2,17,4],[18,2,18,4]]}
[]
[]
[]
[]
[]
[]
[null,null,"Learning Style Questionnaire Results"]
[]
[null,null,"Congratulations!"]
[]
[null,null,"The results of your  Learning Style Questionnaire are as follows:-"]
[]
[null,null,"Your learning style preference is mostly "]
[null,null,{"$f":" L16","v":""}]
[]
[null,null,"Total number of V(isual's) answered:-",null,null,{"$f":"COUNTIF(Quiz!$L$8:$L$98,\"V\")","v":0},null,null,null,null,{"$f":"MAX(F16:F19)","v":0},{"$f":"IF(K16=0,\"\",(IF(K16=F16,\"Visual\",(IF(K16=F17,\"Auditory\",(IF(K16=F18,\"Read/Write\",(IF(K16=F19,\"Kinesthetic\",0)))))))))","v":""}]
[null,null,"Total number of A(uditory's) answered:-",null,null,{"$f":"COUNTIF(Quiz!$L$8:$L$98,\"A\")","v":0}]
[null,null,"Total number of R(ead/Write's) answered:-",null,null,{"$f":"COUNTIF(Quiz!$L$8:$L$98,\"R\")","v":0}]
[null,null,"Total number of K(inesthetic's) answered:-",null,null,{"$f":"COUNTIF(Quiz!$L$8:$L$98,\"K\")","v":0}]
[]
[]
[null,null,"To get further information on your learning style click on the following links:-"]
[]
[null,null,"Visual",null,"Auditory"]
[null,null,"Read/Write",null,"Kinesthetic"]